bitfinex/quotes_SOLUSD_20250815
["timestamp","ask_amount","ask_price","bid_price","bid_amount"]
[1755259847594,21.24606184,195.04,195.03,0.03]
[1755259847816,25.53901006,195.04,195.03,0.03]
[1755259848339,21.24606184,195.04,194.99,62.39]
[1755259848617,8.279814,195.02,194.99,62.39]
[1755259848922,7.83909444,195.01,194.99,62.39]
[1755259849224,7.83909444,195.0,194.99,0.03]
[1755259849395,16.11890844,195.0,194.99,0.03]
[1755259850202,20.39175529,195.0,194.99,0.03]
[1755259850399,16.11890844,195.0,194.99,0.03]
[1755259850703,21.86703748,195.0,194.97,0.03]
[1755259850913,8.279814,194.98,194.97,0.03]
[1755259851103,15.44890844,194.98,194.97,0.03]
[1755259851303,16.11890844,194.98,194.97,0.03]
[1755259852119,26.99576863,194.98,194.97,0.03]
[1755259852817,21.24763959,194.98,194.97,0.03]
[1755259853015,7.16909444,194.98,194.97,26.03]
[1755259853246,11.4574625,194.98,194.97,8.979814]
[1755259853405,7.16909444,194.98,194.97,8.979814]
[1755259854035,7.16909444,194.98,194.97,0.7]
[1755259854419,11.4574625,194.98,194.97,0.7]
[1755259854729,11.4574625,194.98,194.97,5.8289942]
[1755259855040,11.4574625,194.98,194.97,14.1088082]
[1755259856310,7.16909444,194.98,194.97,14.1088082]
[1755259857711,7.16909444,194.98,194.97,5.8289942]
[1755259857926,7.16909444,194.98,194.97,14.1088082]
[1755259858440,7.16909444,194.98,194.97,29.21502377]
[1755259860234,3.39221158,194.98,194.97,29.21502377]
[1755259860748,7.21250874,194.98,194.97,0.03]
[1755259860914,7.91250874,194.98,194.97,0.03]
[1755259861114,7.91250874,194.98,194.97,26.03]
[1755259861624,7.21380938,194.98,194.97,39.4388082]
[1755259861822,7.21380938,194.98,194.97,76.5188082]
[1755259862340,3.39221158,194.98,194.97,76.5188082]
[1755259862841,5.04836806,195.04,194.97,76.5188082]
[1755259863048,7.26056199,195.03,195.0,8.279814]
[1755259863210,5.04836806,195.04,195.01,0.72]
[1755259863211,7.26056199,195.02,195.01,0.72]
[1755259863406,0.06,195.04,195.03,26.0]
[1755259863736,3.49945347,195.04,195.03,34.999814]
[1755259863916,3.49945347,195.04,195.03,14.12723029]
[1755259864114,0.06,195.04,195.03,14.12723029]
[1755259865037,0.06,195.04,195.03,13.40723029]
[1755259865242,0.06,195.04,195.03,29.23344586]
[1755259866237,0.06,195.04,195.02,13.4074326]
[1755259866415,0.76,195.04,195.03,62.38]
[1755259866925,4.20244542,195.04,195.03,62.38]
[1755259867121,0.76,195.04,195.03,26.0]
[1755259867843,0.06,195.04,195.03,26.0]
[1755259868015,0.76,195.04,195.03,26.0]
[1755259868519,0.06,195.04,195.03,31.12741629]
[1755259868943,0.06,195.04,195.03,75.78723029]
[1755259870012,0.06,195.04,195.03,62.38]
[1755259870218,0.76,195.04,195.03,62.38]
[1755259871252,0.06,195.04,195.03,26.0]
[1755259871421,0.06,195.04,195.03,31.12741629]
[1755259871624,0.76,195.04,195.03,26.0]
[1755259872523,17.60990911,195.04,195.0,62.42]
[1755259872739,0.7,195.03,195.02,26.0]
[1755259872915,4.14396399,195.03,195.02,26.0]
[1755259873122,12.42377799,195.03,195.0,36.42]
[1755259873449,8.279814,195.01,194.99,26.0]
[1755259873658,12.42417908,195.0,194.99,26.0]
[1755259874019,0.7,195.0,194.99,26.0]
[1755259874255,4.14436508,195.0,194.99,26.0]
[1755259874426,3.44436508,195.01,194.99,26.0]
[1755259874753,4.14436508,195.0,194.99,26.0]
[1755259875121,4.14436508,195.0,194.97,0.03]
[1755259875122,12.42417908,195.0,194.97,0.03]
[1755259875343,8.279814,194.98,194.97,0.03]
[1755259875642,8.279814,194.98,194.97,26.03]
[1755259875854,8.979814,194.98,194.97,26.03]
[1755259876330,17.55310137,194.98,194.97,0.03]
[1755259876525,21.38063263,194.98,194.97,0.03]
[1755259878151,16.25190148,194.98,194.97,0.03]
[1755259878444,45.83669224,195.0,194.97,0.03]
[1755259878445,8.279814,195.0,194.97,0.03]
[1755259878628,3.44303138,194.99,194.97,0.03]
[1755259878838,8.979814,194.99,194.97,0.03]
[1755259879046,8.279814,194.98,194.97,0.03]
[1755259879227,4.14303138,194.98,194.97,0.03]
[1755259879427,0.7,194.98,194.97,0.03]
[1755259879649,8.279814,194.99,194.97,0.03]
[1755259880024,11.72317837,194.99,194.97,0.03]
[1755259880227,8.979814,194.99,194.97,0.03]
[1755259880526,12.42337906,194.98,194.97,0.03]
[1755259880826,15.10621557,194.97,194.93,0.03]
[1755259881038,13.42916777,194.94,194.93,0.03]
[1755259881220,16.87273283,194.94,194.93,0.03]
[1755259881426,17.57273283,194.94,194.93,0.03]
[1755259881630,4.14356506,194.94,194.93,0.03]
[1755259882257,9.27334858,194.94,194.93,0.03]
[1755259883834,5.82978352,194.94,194.93,0.03]
[1755259884161,13.09707223,194.94,194.93,0.03]
[1755259884538,13.09602061,194.94,194.93,0.03]
[1755259885269,9.27334858,194.94,194.93,0.03]
[1755259886450,5.82978352,194.94,194.93,0.03]
[1755259886651,49.86916777,194.94,194.93,0.03]
[1755259886936,53.31273283,194.94,194.93,0.03]
[1755259887779,49.86916777,194.94,194.93,0.03]
[1755259887961,13.42916777,194.96,194.93,0.03]
[1755259888271,3.43715972,194.95,194.93,0.03]
[1755259889587,13.42916777,194.97,194.93,0.03]
[1755259889752,3.43649834,194.96,194.93,0.03]
[1755259890080,13.42916777,194.97,194.93,0.03]
[1755259890447,36.44,194.98,194.94,39.42916777]
[1755259890647,36.44,194.98,194.94,26.72]
[1755259890875,50.55916777,194.98,194.94,26.0]
[1755259891284,49.86916777,194.98,194.94,26.0]
[1755259891459,13.42916777,194.95,194.93,26.03]
[1755259892348,13.42916777,194.95,194.94,26.0]
[1755259892712,5.81918087,194.97,194.94,26.0]
[1755259892713,13.42916777,194.96,194.94,26.0]
[1755259893780,13.42916777,194.96,194.93,0.03]
[1755259893781,13.42916777,194.96,194.93,26.03]
[1755259893976,49.86916777,194.98,194.94,26.0]
[1755259894187,0.06,194.99,194.96,13.42916777]
[1755259894547,0.06,194.99,194.96,0.66]
[1755259894762,0.06,194.99,194.97,13.42916777]
[1755259894968,0.06,194.99,194.98,14.08916777]
[1755259895748,0.06,194.99,194.98,13.42916777]
[1755259896361,0.06,194.99,194.98,19.21789892]
[1755259897161,0.06,194.99,194.98,18.55789892]
[1755259897470,0.06,194.99,194.97,26.0]
[1755259898065,0.06,194.99,194.97,31.12898208]
[1755259898275,0.06,194.99,194.97,31.78898208]
[1755259899157,0.06,194.99,194.98,13.42916777]
[1755259899362,0.06,194.99,194.98,14.08916777]
[1755259900877,0.06,194.99,194.98,29.19538334]
[1755259901076,0.06,194.99,194.98,65.63538334]
[1755259901276,0.06,194.99,194.98,70.76411449]
[1755259903189,0.06,194.99,194.98,57.33494672]
[1755259903493,0.06,194.99,194.98,70.76411449]
[1755259905080,0.06,194.99,194.98,54.99789892]
[1755259905283,0.06,194.99,194.98,55.65789892]
[1755259905863,0.06,194.99,194.98,42.22873115]
[1755259906068,0.06,194.99,194.98,55.65789892]
[1755259908777,0.06,194.99,194.98,50.51319589]
[1755259909295,0.06,194.99,194.98,65.61941146]
[1755259909505,0.06,195.01,195.0,15.10621557]
[1755259909801,0.06,195.01,195.0,59.75068031]
[1755259910003,0.06,195.01,195.0,60.41068031]
[1755259910706,0.06,195.01,195.0,65.53888543]
[1755259911203,0.06,195.01,195.0,49.77266986]
[1755259911374,0.75,195.01,195.0,62.36]
[1755259911696,0.75,195.01,195.0,67.48820512]
[1755259911892,0.06,195.01,195.0,67.48820512]
[1755259912408,0.75,195.01,195.0,62.36]
[1755259913370,0.75,195.01,195.0,26.0]
[1755259915387,5.87797925,195.01,194.96,13.41352065]
[1755259915584,0.69,195.0,194.97,36.36]
[1755259915783,13.4724289,195.01,194.99,26.0]
[1755259916473,8.97446474,195.0,194.95,5.15948407]
[1755259916699,8.97446474,195.0,194.95,41.51948407]
[1755259916880,0.69,194.99,194.95,67.51948407]
[1755259917088,0.69,194.99,194.95,31.15948407]
[1755259917279,0.69,194.99,194.95,67.51948407]
[1755259918499,8.28446474,195.0,194.95,67.51948407]
[1755259918690,0.69,194.99,194.95,67.51948407]
[1755259919304,0.69,194.99,194.95,67.49948407]
[1755259919491,9.03446474,195.01,194.95,75.78394881]
[1755259919693,9.03446474,195.01,194.95,76.44394881]
[1755259920307,14.16258392,195.01,194.95,76.44394881]
[1755259920483,8.28446474,194.96,194.95,0.03]
[1755259920804,8.28446474,194.97,194.95,0.03]
[1755259920985,8.28446474,194.97,194.95,26.03]
[1755259921186,8.96446474,194.97,194.95,26.03]
[1755259921494,0.68,194.97,194.95,26.03]
[1755259921889,11.72127853,194.99,194.95,26.03]
[1755259922087,12.40127853,194.99,194.95,26.03]
[1755259922298,11.72127853,194.99,194.95,26.03]
[1755259922508,0.06,195.01,194.97,39.41345894]
[1755259922509,0.74,195.01,194.97,39.41345894]
[1755259922802,0.06,195.01,194.98,8.28446474]
[1755259922989,0.68,195.0,194.97,26.0]
[1755259923306,8.28446474,194.98,194.95,0.03]
[1755259923515,8.28446474,194.97,194.95,0.03]
[1755259923717,8.96446474,194.97,194.95,0.03]
[1755259923892,0.68,194.96,194.95,26.03]
[1755259924910,8.28446474,194.97,194.95,26.03]
[1755259925288,0.68,194.97,194.95,26.03]
[1755259929097,8.28446474,194.98,194.95,26.03]
[1755259929418,0.68,194.97,194.95,26.03]
[1755259932713,8.28446474,194.96,194.95,26.03]
[1755259933023,8.96446474,194.96,194.95,26.03]
[1755259933516,0.68,194.96,194.95,26.03]
[1755259933713,8.96446474,194.96,194.95,26.03]
[1755259935325,8.96446474,194.96,194.95,0.03]
[1755259935326,0.68,194.96,194.95,0.03]
[1755259935530,17.53952055,194.96,194.95,0.03]
[1755259936226,12.41026327,194.96,194.95,0.03]
[1755259936428,3.44579853,194.96,194.95,0.69]
[1755259936731,0.68,195.0,194.95,0.69]
[1755259936732,11.73026327,194.99,194.95,0.69]
[1755259936933,3.44579853,194.98,194.95,0.69]
[1755259937136,3.44579853,194.97,194.95,0.03]
[1755259937633,8.96446474,194.96,194.95,0.03]
[1755259937930,12.41033418,194.96,194.95,0.03]
[1755259939428,11.73033418,194.96,194.95,0.03]
[1755259939634,8.28446474,194.96,194.95,0.03]
[1755259939832,8.96446474,194.96,194.95,0.03]
[1755259940143,12.40990464,194.96,194.95,0.03]
[1755259940343,11.72990464,194.96,194.95,0.03]
[1755259940543,13.41355692,194.97,194.95,0.03]
[1755259940837,8.96446474,194.98,194.95,0.03]
[1755259941140,8.28446474,194.99,194.95,0.03]
[1755259941341,3.44496973,194.98,194.95,0.03]
[1755259941644,12.40943447,194.98,194.95,0.03]
[1755259942608,8.28446474,194.98,194.95,0.03]
[1755259942814,8.96446474,194.98,194.95,0.03]
[1755259944124,0.68,194.97,194.93,4.84999042]
[1755259945926,0.68,194.97,194.93,8.28446474]
[1755259946240,4.12426246,195.0,194.96,26.0]
[1755259946411,11.7287272,195.0,194.96,26.0]
[1755259946619,0.68,194.99,194.95,26.0]
[1755259946947,0.68,194.98,194.95,26.0]
[1755259947236,8.28446474,194.97,194.92,5.16030987]
[1755259947440,8.28446474,194.97,194.92,31.16030987]
[1755259947612,8.96446474,194.96,194.92,26.03]
[1755259947813,8.28446474,194.96,194.92,26.03]
[1755259948117,8.96446474,194.96,194.94,26.0]
[1755259948439,0.68,194.96,194.94,26.0]
[1755259948622,11.72929547,194.97,194.94,26.0]
[1755259949021,12.40929547,194.97,194.94,26.0]
[1755259949637,4.12483073,194.97,194.94,26.0]
[1755259949939,0.68,194.97,194.94,26.0]
[1755259950739,11.72929547,194.98,194.94,31.12970589]
[1755259950928,0.68,194.99,194.94,39.84417063]
[1755259951114,16.85821019,195.0,194.94,31.12970589]
[1755259951320,8.95446474,194.98,194.95,26.0]
[1755259951514,8.95446474,194.98,194.92,8.31446474]
[1755259951515,8.95446474,194.97,194.92,0.03]
[1755259951733,8.28446474,194.95,194.93,26.0]
[1755259951915,0.67,194.94,194.93,26.0]
[1755259953109,14.08430614,194.94,194.92,0.03]
[1755259953322,11.73226401,194.93,194.92,0.03]
[1755259953522,12.40226401,194.93,194.92,0.03]
[1755259954342,17.53231069,194.93,194.92,0.03]
[1755259955833,12.40226401,194.93,194.92,0.03]
[1755259956043,4.11779927,194.93,194.92,0.03]
[1755259957517,17.53231069,194.93,194.92,0.03]
[1755259958122,21.36702112,194.93,194.92,0.03]
[1755259958639,12.40226401,194.93,194.92,0.03]
[1755259958846,21.36707064,194.93,194.92,0.03]
[1755259961725,21.36773659,194.93,194.92,0.03]
[1755259962040,13.08327185,194.93,194.92,0.03]
[1755259962222,40.78128897,194.93,194.92,0.03]
[1755259962621,25.6750734,194.93,194.92,0.03]
[1755259962848,57.72773659,194.93,194.92,0.03]
[1755259966054,57.72546685,194.93,194.92,0.03]
[1755259966953,77.13901923,194.93,194.92,0.03]
[1755259967832,62.03280366,194.93,194.92,0.03]
[1755259968759,62.03280366,194.93,194.91,0.03]
[1755259968933,20.54275698,194.92,194.91,0.03]
[1755259969262,16.23542017,194.92,194.9,0.03]
[1755259969455,52.59542017,194.91,194.9,0.03]
[1755259970237,57.72599325,194.91,194.9,0.03]
[1755259971257,87.72599325,194.91,194.9,0.03]
[1755259973257,51.35905528,194.91,194.9,0.03]
[1755259973462,87.71905528,194.91,194.9,0.03]
[1755259975156,37.27401746,194.91,194.9,0.03]
[1755259975363,33.44779927,194.91,194.9,0.03]
[1755259975541,36.36,194.92,194.9,0.46]
[1755259975940,36.36,194.92,194.9,0.03]
[1755259976139,44.64446474,194.92,194.9,0.03]
[1755259976540,36.36,194.92,194.9,0.03]
[1755259977936,36.36,194.92,194.9,0.46]
[1755259980365,36.36,194.92,194.9,0.03]
[1755259981073,36.36,194.92,194.9,5.59074742]
[1755259981285,5.1893338,194.96,194.91,8.71446474]
[1755259981286,0.06,194.96,194.91,8.71446474]
[1755259981446,0.06,194.96,194.95,13.41398512]
[1755259981883,0.06,194.96,194.94,8.28446474]
[1755259982082,0.06,194.96,194.94,13.41414025]
[1755259982253,0.06,194.96,194.95,8.71446474]
[1755259983775,0.06,194.96,194.95,8.28446474]
[1755259983950,0.06,194.96,194.93,39.84442104]
[1755259984152,0.06,194.96,194.94,8.71446474]
[1755259985283,0.06,194.96,194.95,8.28446474]
[1755259985660,0.06,194.96,194.95,8.71446474]
[1755259986971,0.06,194.96,194.95,13.84398512]
[1755259989788,0.06,194.96,194.95,14.35693715]
[1755259989994,0.06,194.97,194.96,26.0]
[1755259990172,0.06,194.98,194.97,8.28446474]
[1755259990485,0.06,194.98,194.97,8.71446474]
[1755259990694,0.06,194.98,194.97,9.22736416]
[1755259991255,0.06,194.98,194.97,14.35635836]
[1755259993683,1e-08,195.01,194.99,26.0]
[1755259993858,1e-08,195.01,194.97,27.17884387]
[1755259993859,0.06,195.02,195.0,79.42174999]
[1755259994183,0.06,195.02,195.01,8.28446474]
[1755259994586,0.06,195.02,195.01,8.71446474]
[1755259995578,0.06,195.02,195.01,13.84240689]
[1755259997775,0.67,195.11,195.04,26.0]
[1755259997968,0.67,195.11,195.1,8.28446474]
[1755259999290,213.9,195.2,195.08,62.34]
[1755259999487,12.37324611,195.19,195.13,8.28446474]
[1755259999691,5.79347576,195.18,195.13,8.28446474]
[1755259999893,0.67,195.17,195.14,8.28446474]
[1755260000286,0.67,195.16,195.12,26.0]
[1755260000466,0.67,195.16,195.14,8.28446474]
[1755260000667,0.67,195.15,195.14,8.28446474]
[1755260001279,0.67,195.15,195.12,26.0]
[1755260001491,0.67,195.15,195.12,34.28446474]
[1755260001913,0.67,195.14,195.13,8.28446474]
[1755260002793,0.67,195.14,195.12,8.28446474]
[1755260002977,0.67,195.14,195.11,34.28446474]
[1755260003992,5.1247886,195.13,195.11,34.28446474]
[1755260004191,0.67,195.12,195.11,34.28446474]
[1755260008085,5.12433022,195.15,195.11,34.28446474]
[1755260008286,0.06,195.16,195.13,8.28446474]
[1755260008596,0.67,195.14,195.13,8.28446474]
[1755260011116,0.73,195.14,195.13,8.28446474]
[1755260012191,0.73,195.14,195.12,8.28446474]
[1755260012487,0.7,195.13,195.12,8.28446474]
[1755260013079,0.7,195.13,195.12,26.0]
[1755260013298,0.7,195.13,195.12,34.28446474]
[1755260016601,0.7,195.13,195.11,8.28446474]
[1755260017808,0.06,195.14,195.11,8.28446474]
[1755260018001,0.7,195.12,195.09,31.12577349]
[1755260018187,0.76,195.14,195.11,34.28446474]
[1755260018379,0.76,195.14,195.12,8.28446474]
[1755260018580,0.06,195.14,195.12,8.28446474]
[1755260018776,0.7,195.13,195.09,8.28446474]
[1755260019200,8.98446474,195.13,195.08,26.0]
[1755260019502,8.28446474,195.1,195.04,8.28446474]
[1755260019687,44.23146363,195.12,195.03,0.03]
[1755260019688,5.12610211,195.08,195.06,26.0]
[1755260019891,0.7,195.07,195.06,26.0]
[1755260021690,3.41856695,195.11,195.06,8.71446474]
[1755260021894,3.41856695,195.11,195.05,31.12668559]
[1755260021895,0.7,195.1,195.08,8.28446474]
[1755260022105,0.7,195.09,195.06,8.28446474]
[1755260022313,8.98446474,195.09,195.05,26.0]
[1755260022486,4.12292408,195.08,195.05,26.0]
[1755260022687,0.7,195.07,195.03,8.31446474]
[1755260023005,0.7,195.06,195.03,26.03]
[1755260023210,3.42292408,195.07,195.03,0.03]
[1755260023505,3.42857933,195.07,195.05,8.28446474]
[1755260023705,0.7,195.08,195.04,8.28446474]
[1755260023878,0.7,195.08,195.05,8.28446474]
[1755260024079,0.7,195.13,195.07,8.28446474]
[1755260024286,7.23941509,195.12,195.1,8.28446474]
[1755260024492,7.23941509,195.11,195.1,8.28446474]
[1755260025314,3.42814355,195.11,195.1,8.28446474]
[1755260025496,4.12814355,195.11,195.09,8.28446474]
[1755260025690,0.7,195.11,195.09,8.28446474]
[1755260025903,0.7,195.13,195.09,8.28446474]
[1755260026088,7.94239104,195.12,195.09,8.28446474]
[1755260026403,0.7,195.12,195.09,8.28446474]
[1755260026592,3.43114961,195.11,195.09,8.28446474]
[1755260026793,0.7,195.12,195.09,8.28446474]
[1755260027014,3.43195071,195.11,195.09,8.28446474]
[1755260027190,0.7,195.12,195.09,13.4102502]
[1755260027390,3.43195071,195.11,195.09,13.4102502]
[1755260027604,0.7,195.1,195.09,5.12578546]
[1755260027798,0.7,195.1,195.08,13.41051273]
[1755260027997,0.7,195.12,195.08,13.41051273]
[1755260028213,7.24770677,195.11,195.08,13.41051273]
[1755260028411,0.06,195.13,195.08,13.41051273]
[1755260028597,0.7,195.11,195.08,13.41051273]
[1755260028797,4.13351809,195.1,195.07,8.28446474]
[1755260029107,4.13351809,195.09,195.05,34.28446474]
[1755260029299,4.13351809,195.08,195.05,34.28446474]
[1755260029503,0.7,195.08,195.07,26.0]
[1755260029696,4.13661035,195.08,195.07,26.0]
[1755260030102,0.7,195.08,195.07,26.0]
[1755260030993,5.12539076,195.11,195.07,26.0]
[1755260031205,7.95853725,195.1,195.07,26.0]
[1755260031403,3.43826243,195.09,195.07,26.0]
[1755260031621,0.7,195.09,195.07,26.0]
[1755260032635,3.44148515,195.08,195.07,26.0]
[1755260033014,4.14148515,195.08,195.07,26.0]
[1755260033526,0.7,195.08,195.07,26.0]
[1755260033734,4.36957171,195.13,195.07,26.0]
[1755260034028,44.28898539,195.12,195.08,8.28446474]
[1755260034196,3.44322085,195.11,195.07,13.41076952]
[1755260034395,3.44322085,195.11,195.08,8.28446474]
[1755260034396,3.44322085,195.1,195.08,8.28446474]
[1755260034591,0.7,195.11,195.08,8.28446474]
[1755260034839,3.44495197,195.1,195.08,8.28446474]
[1755260035032,0.7,195.11,195.08,8.28446474]
[1755260035199,3.44495197,195.1,195.08,8.28446474]
[1755260035399,0.7,195.11,195.08,8.28446474]
[1755260035604,36.32,195.12,195.09,8.28446474]
[1755260035796,3.44576651,195.11,195.09,8.28446474]
[1755260036132,36.32,195.12,195.09,8.28446474]
[1755260036332,3.44556773,195.11,195.09,8.28446474]
[1755260036508,36.32,195.12,195.09,8.28446474]
[1755260037036,36.32,195.12,195.09,13.41028784]
[1755260037424,37.02,195.12,195.09,13.41028784]
[1755260038030,0.7,195.11,195.07,5.12616521]
[1755260038211,0.7,195.1,195.07,13.41062995]
[1755260038413,0.7,195.09,195.03,26.03]
[1755260038730,39.76864658,195.08,195.04,26.0]
[1755260039040,4.14864658,195.07,195.04,26.0]
[1755260039253,0.7,195.07,195.06,26.0]
[1755260039426,36.32,195.08,195.07,26.0]
[1755260039617,40.46865009,195.08,195.07,26.0]
[1755260041249,45.5947522,195.08,195.07,26.0]
[1755260041462,45.5947522,195.08,195.06,26.0]
[1755260041620,4.11865009,195.07,195.06,26.0]
[1755260041816,4.11865009,195.07,195.03,0.03]
[1755260042154,0.67,195.06,195.05,26.0]
[1755260042523,0.67,195.06,195.04,26.0]
[1755260042881,0.67,195.06,195.03,0.03]
[1755260042882,0.67,195.06,195.05,26.0]
[1755260043038,36.32,195.08,195.05,26.0]
[1755260043248,3.4487209,195.07,195.05,26.0]
[1755260043437,3.4487209,195.07,195.04,5.12711895]
[1755260043756,3.4487209,195.07,195.04,13.41158369]
[1755260044743,3.4487209,195.07,195.04,8.28446474]
[1755260045243,36.32,195.08,195.04,8.28446474]
[1755260045541,0.67,195.07,195.04,8.28446474]
[1755260045745,0.67,195.06,195.03,0.03]
[1755260045942,0.67,195.06,195.04,26.0]
[1755260046123,4.11782356,195.06,195.04,26.0]
[1755260046324,36.99,195.05,195.04,26.0]
[1755260048044,36.99,195.05,195.03,0.03]
[1755260048045,53.84862301,195.05,195.03,0.03]
[1755260048249,12.40173247,195.04,195.03,0.03]
[1755260049156,16.23165603,195.04,195.03,0.03]
[1755260050331,21.35880943,195.04,195.03,0.03]
[1755260051125,17.52888587,195.04,195.03,0.03]
[1755260053756,9.24442113,195.04,195.03,0.03]
[1755260053956,17.52888587,195.04,195.03,0.03]
[1755260054852,4.11726773,195.04,195.03,0.03]
[1755260055040,3.44726773,195.04,195.03,0.03]
[1755260055556,4.11726773,195.04,195.03,0.03]
[1755260055722,9.24442113,195.04,195.03,0.03]
[1755260056457,8.57442113,195.04,195.03,0.03]
[1755260056850,3.44726773,195.04,195.03,0.03]
[1755260057361,9.24442113,195.04,195.03,0.03]
[1755260057540,17.52888587,195.04,195.03,0.03]
[1755260058065,3.44726773,195.04,195.03,0.03]
[1755260058659,4.11726773,195.04,195.03,0.03]
[1755260059047,3.44726773,195.04,195.03,0.03]
[1755260059963,16.85888587,195.04,195.03,0.03]
[1755260060168,17.52888587,195.04,195.03,0.03]
[1755260064162,16.85888587,195.04,195.03,0.03]
[1755260064565,3.44726773,195.04,195.03,0.03]
[1755260067442,49.73143729,195.05,195.03,0.03]
[1755260067740,50.40143729,195.05,195.03,0.03]
[1755260068275,3.44028013,195.04,195.03,0.03]
[1755260068458,50.40143729,195.05,195.03,0.03]
[1755260069439,3.4403069,195.04,195.03,0.03]
[1755260070044,4.1103069,195.04,195.03,0.03]
[1755260072473,17.52192504,195.04,195.03,0.03]
[1755260072785,9.2374603,195.04,195.03,0.03]
[1755260072959,17.52192504,195.04,195.03,0.03]
[1755260074167,3.4403069,195.04,195.03,0.03]
[1755260074369,9.2774603,195.04,195.03,0.03]
[1755260074563,17.56192504,195.04,195.03,0.03]
[1755260075362,8.5674603,195.04,195.03,0.03]
[1755260075870,3.4403069,195.04,195.03,0.03]
[1755260076174,36.32,195.05,195.03,0.03]
[1755260076356,36.32,195.04,195.03,0.03]
[1755260078175,36.38,195.04,195.03,0.03]
[1755260078962,0.06,195.04,195.03,8.74446474]
[1755260079276,0.06,195.04,195.03,0.46]
[1755260079594,0.06,195.04,195.03,8.74446474]
[1755260080278,0.06,195.04,195.03,8.31446474]
[1755260080477,0.06,195.04,195.03,0.03]
[1755260080667,40.51556992,195.04,195.03,0.03]
[1755260081061,45.64272332,195.04,195.03,0.03]
[1755260081379,57.75696715,195.04,195.03,0.03]
[1755260081979,62.06679864,195.04,195.01,0.03]
[1755260082175,8.28446474,195.02,194.99,0.03]
[1755260082463,8.28446474,195.0,194.99,0.03]
[1755260082671,19.86966191,195.0,194.99,0.03]
[1755260082976,21.39801887,195.0,194.99,0.03]
[1755260083477,51.39801887,195.0,194.99,0.03]
[1755260083685,55.70786703,195.0,194.99,0.03]
[1755260083987,51.39801887,195.0,194.99,0.03]
[1755260084880,21.39801887,195.0,194.99,0.03]
[1755260085775,25.70786703,195.0,194.99,0.03]
[1755260086067,55.70786703,195.0,194.99,0.03]
[1755260086465,25.70786703,195.0,194.99,0.03]
[1755260088258,21.39801887,195.0,194.99,0.03]
[1755260092671,51.39801887,195.0,194.99,0.03]
[1755260094585,51.39802621,195.0,194.99,0.03]
[1755260096586,51.39802621,195.0,194.99,1e-08]
[1755260097084,66.81070021,195.0,194.97,0.03]
[1755260097391,8.28446474,194.98,194.97,0.03]
[1755260097585,7.27535635,194.98,194.97,0.03]
[1755260097792,15.55982109,194.98,194.97,0.03]
[1755260098195,20.68855224,194.98,194.97,0.03]
[1755260100371,21.39425167,194.98,194.97,0.03]
[1755260100677,36.0,194.96,194.91,0.03]
[1755260100878,12.58988657,194.92,194.91,1e-08]
[1755260101185,56.15970256,194.92,194.91,1e-08]
[1755260101385,56.87970256,194.92,194.91,1e-08]
[1755260101587,56.87970256,194.92,194.9,1e-08]
[1755260101786,19.85970256,194.91,194.9,1e-08]
[1755260101987,46.27428073,194.91,194.87,0.03]
[1755260102190,8.28446474,194.88,194.87,0.03]
[1755260102367,57.00481958,194.88,194.87,0.03]
[1755260102569,57.72481958,194.88,194.87,0.03]
[1755260103991,59.78100458,194.88,194.87,0.03]
[1755260104189,55.95635009,194.88,194.87,0.03]
[1755260104400,59.77075002,194.88,194.87,0.03]